[Event "44th Chess Olympiad Women 2022"]
[Site "Chennai"]
[Date "2022.08.01"]
[Round "4.34"]
[White "Malikova, Marjona"]
[Black "Gonzalez Peguero, Mary Loly"]
[Result "1-0"]
[WhiteElo "1756"]
[BlackElo "1666"]
[Annotator "NA RC"]
[PlyCount "89"]
[EventDate "2022.??.??"]
[TimeControl "60"]

1. d4 {[%emt 0:00:04]} Nf6 {[%emt 0:00:11]} 2. c4 {[%emt 0:00:13]} g6 {[%emt 0:
00:00]} 3. Nf3 {[%emt 0:00:13]} Bg7 {[%emt 0:00:37]} 4. e3 {[%emt 0:00:22]} d6
{[%emt 0:01:49]} 5. Be2 {[%emt 0:01:02]} O-O {[%emt 0:01:18]} 6. Nc3 {[%emt 0:
00:00]} Nbd7 {[%emt 0:03:24]} 7. O-O {[%emt 0:01:38]} c5 {[%emt 0:07:18]} 8. a3
{[%emt 0:02:57]} b6 {[%emt 0:03:28]} 9. b4 {[%emt 0:05:12]} Bb7 {[%emt 0:04:53]
} 10. bxc5 {[%emt 0:05:44]} bxc5 {[%emt 0:02:12]} 11. Rb1 {[%emt 0:01:52]} Rb8
{[%emt 0:02:22]} 12. Qa4 {[%emt 0:10:14]} a6 {[%emt 0:07:26]} 13. d5 {[%emt 0:
00:00]} e6 {[%emt 0:14:11]} 14. e4 {[%emt 0:06:15]} Ng4 {[%emt 0:06:24]} 15.
Bd2 {[%emt 0:03:03]} Nge5 {[%emt 0:05:17]} 16. Nxe5 {[%emt 0:10:22]} Bxe5 {
[%emt 0:02:59]} 17. Qc2 {[%emt 0:11:03]} Qh4 {[%emt 0:05:21]} 18. f4 {[%emt 0:
00:00]} Bd4+ {[%emt 0:02:05]} 19. Kh1 {[%emt 0:00:16]} Bc8 {[%emt 0:06:49]} 20.
Rxb8 {[%emt 0:01:50]} Nxb8 {[%emt 0:00:07]} 21. g3 {[%emt 0:01:30]} Qe7 {
[%emt 0:01:22]} 22. Rb1 {[%emt 0:00:51]} Nd7 {[%emt 0:01:24]} 23. Bd3 {[%emt 0:
00:00]} Bg7 {[%emt 0:06:50]} 24. Na4 {[%emt 0:03:01]} exd5 {[%emt 0:00:37]} 25.
exd5 {[%emt 0:00:31]} Nf6 {[%emt 0:00:38]} 26. Rb6 {[%emt 0:02:52]} Ng4 {
[%emt 0:00:50]} 27. Kg2 {[%emt 0:01:57]} Ne3+ {[%emt 0:01:43]} 28. Bxe3 {
[%emt 0:00:05]} Qxe3 {[%emt 0:00:10]} 29. Qe2 {[%emt 0:01:39]} Qc1 {[%emt 0:00:
00]} 30. Rxd6 {[%emt 0:03:37]} Bd4 {[%emt 0:00:32]} 31. Qf1 {[%emt 0:01:39]}
Qxa3 {[%emt 0:02:26]} 32. Nb6 {[%emt 0:01:01]} Qb2+ {[%emt 0:00:52]} 33. Qe2 {
[%emt 0:00:34]} Qc1 {[%emt 0:01:58]} 34. Nxc8 {[%emt 0:00:31]} Rxc8 {[%emt 0:
00:00]} 35. Rxa6 {[%emt 0:00:53]} Rb8 {[%emt 0:01:45]} 36. Ra2 {[%emt 0:03:08]}
h5 {[%emt 0:02:15]} 37. d6 {[%emt 0:01:45]} h4 {[%emt 0:01:06]} 38. d7 {
[%emt 0:01:34]} Qg1+ {[%emt 0:01:36]} 39. Kh3 {[%emt 0:00:51]} Kg7 {[%emt 0:00:
00]} 40. Qe8 {[%emt 0:01:33]} hxg3 {[%emt 0:00:47]} 41. hxg3 {[%emt 0:31:55]}
Rxe8 {[%emt 0:31:26]} 42. dxe8=Q {[%emt 0:00:12]} Bf2 {[%emt 0:00:20]} 43. Qe5+
{[%emt 0:00:00]} Kh7 {[%emt 0:00:00]} 44. Bxg6+ {[%emt 0:00:00]} Kxg6 {[%emt 0:
00:00]} 45. Ra6+ {[%emt 0:00:00]} 1-0

[Event "44th Chess Olympiad Women 2022"]
[Site "Chennai"]
[Date "2022.08.01"]
[Round "4.34"]
[White "Munoz Santana, Doribel"]
[Black "Bobomurodova, Maftuna"]
[Result "0-1"]
[WhiteElo "1851"]
[BlackElo "1914"]
[Annotator "NA RC"]
[PlyCount "52"]
[EventDate "2022.??.??"]
[TimeControl "60"]

1. d4 {[%emt 0:00:03]} Nf6 {[%emt 0:00:29]} 2. Nf3 {[%emt 0:00:06]} d5 {
[%emt 0:00:26]} 3. g3 {[%emt 0:00:07]} Bf5 {[%emt 0:00:06]} 4. Bg2 {[%emt 0:00:
00]} e6 {[%emt 0:00:47]} 5. O-O {[%emt 0:00:07]} Nbd7 {[%emt 0:02:36]} 6. Nbd2
{[%emt 0:01:12]} h6 {[%emt 0:00:10]} 7. c4 {[%emt 0:00:29]} c6 {[%emt 0:03:46]}
8. a3 {[%emt 0:03:08]} Be7 {[%emt 0:04:04]} 9. b4 {[%emt 0:00:09]} a5 {[%emt 0:
00:00]} 10. bxa5 {[%emt 0:12:44]} Qxa5 {[%emt 0:01:49]} 11. Qb3 {[%emt 0:09:17]
} O-O {[%emt 0:02:37]} 12. cxd5 {[%emt 0:01:20]} cxd5 {[%emt 0:05:50]} 13. Ne5
{[%emt 0:04:11]} Nb6 {[%emt 0:09:01]} 14. f3 {[%emt 0:05:36]} Bb4 {[%emt 0:00:
00]} 15. e4 {[%emt 0:09:28]} Bc3 {[%emt 0:06:32]} 16. Bb2 {[%emt 0:02:30]} Bxd2
{[%emt 0:00:25]} 17. exf5 {[%emt 0:00:09]} exf5 {[%emt 0:02:06]} 18. Rad1 {
[%emt 0:06:25]} Na4 {[%emt 0:04:29]} 19. Ba1 {[%emt 0:03:19]} Bc3 {[%emt 0:00:
00]} 20. Bxc3 {[%emt 0:08:04]} Qxc3 {[%emt 0:01:55]} 21. Rd3 {[%emt 0:02:43]}
Qc7 {[%emt 0:04:26]} 22. Rb1 {[%emt 0:01:16]} b6 {[%emt 0:01:18]} 23. Bf1 {
[%emt 0:03:24]} Rfc8 {[%emt 0:02:20]} 24. Re1 {[%emt 0:05:19]} Ra5 {[%emt 0:00:
00]} 25. Rd2 {[%emt 0:06:23]} Qc3 {[%emt 0:04:12]} 26. Rd3 {[%emt 0:01:25]}
Qxe1 {[%emt 0:00:09]} 0-1

[Event "44th Chess Olympiad Women 2022"]
[Site "Chennai"]
[Date "2022.08.01"]
[Round "4.34"]
[White "Omonova, Umida"]
[Black "Diaz Cesar, Wilsaida Pieranlly"]
[Result "1/2-1/2"]
[WhiteElo "2195"]
[BlackElo "1834"]
[Annotator "NA RC"]
[PlyCount "64"]
[EventDate "2022.??.??"]
[TimeControl "60"]

1. e4 {[%emt 0:00:13]} e5 {[%emt 0:00:11]} 2. Nf3 {[%emt 0:00:06]} d6 {[%emt 0:
00:00]} 3. d4 {[%emt 0:01:09]} exd4 {[%emt 0:04:25]} 4. Nxd4 {[%emt 0:00:07]}
Nf6 {[%emt 0:00:07]} 5. Nc3 {[%emt 0:00:16]} Be7 {[%emt 0:00:13]} 6. g3 {
[%emt 0:01:34]} O-O {[%emt 0:00:39]} 7. Bg2 {[%emt 0:00:00]} Re8 {[%emt 0:00:
00]} 8. O-O {[%emt 0:00:26]} Bf8 {[%emt 0:00:40]} 9. Re1 {[%emt 0:02:10]} c6 {
[%emt 0:02:11]} 10. h3 {[%emt 0:03:17]} a5 {[%emt 0:02:47]} 11. Be3 {[%emt 0:
00:00]} Na6 {[%emt 0:03:01]} 12. f4 {[%emt 0:01:11]} Nc5 {[%emt 0:00:57]} 13.
Bf2 {[%emt 0:00:20]} Qc7 {[%emt 0:01:00]} 14. a3 {[%emt 0:02:02]} a4 {[%emt 0:
00:00]} 15. Qf3 {[%emt 0:05:24]} Bd7 {[%emt 0:06:38]} 16. Rad1 {[%emt 0:05:19]}
g6 {[%emt 0:04:25]} 17. g4 {[%emt 0:06:42]} h6 {[%emt 0:02:17]} 18. Kh1 {
[%emt 0:08:46]} Bg7 {[%emt 0:02:13]} 19. Qg3 {[%emt 0:06:45]} b6 {[%emt 0:00:
00]} 20. Rd2 {[%emt 0:05:39]} Rad8 {[%emt 0:05:49]} 21. b4 {[%emt 0:03:21]}
axb3 {[%emt 0:00:56]} 22. cxb3 {[%emt 0:00:05]} d5 {[%emt 0:07:06]} 23. exd5 {
[%emt 0:02:14]} Rxe1+ {[%emt 0:04:04]} 24. Bxe1 {[%emt 0:00:05]} Nxd5 {[%emt 0:
00:00]} 25. Ndb5 {[%emt 0:05:33]} Qb8 {[%emt 0:06:20]} 26. b4 {[%emt 0:08:39]}
Nxc3 {[%emt 0:04:45]} 27. Nxc3 {[%emt 0:00:10]} Nb3 {[%emt 0:01:08]} 28. Rd1 {
[%emt 0:02:22]} Nd4 {[%emt 0:00:44]} 29. Bf2 {[%emt 0:00:50]} c5 {[%emt 0:00:
00]} 30. bxc5 {[%emt 0:04:59]} bxc5 {[%emt 0:01:40]} 31. Ne4 {[%emt 0:01:26]}
Ba4 {[%emt 0:03:52]} 32. Rd2 {[%emt 0:02:27]} c4 {[%emt 0:01:44]} 1/2-1/2

[Event "44th Chess Olympiad Women 2022"]
[Site "Chennai"]
[Date "2022.08.01"]
[Round "4.34"]
[White "Rosario Almanzar, Raydily"]
[Black "Yakubbaeva, Nilufar"]
[Result "1/2-1/2"]
[WhiteElo "1882"]
[BlackElo "2299"]
[Annotator "NA RC"]
[PlyCount "63"]
[EventDate "2022.??.??"]
[TimeControl "60"]

1. c4 {[%emt 0:01:18]} e5 {[%emt 0:00:28]} 2. Nc3 {[%emt 0:00:19]} Nc6 {
[%emt 0:01:01]} 3. Nf3 {[%emt 0:00:37]} Nf6 {[%emt 0:00:45]} 4. e4 {[%emt 0:00:
00]} Bc5 {[%emt 0:01:26]} 5. h3 {[%emt 0:05:24]} d6 {[%emt 0:01:19]} 6. d3 {
[%emt 0:01:21]} Be6 {[%emt 0:06:18]} 7. a3 {[%emt 0:09:39]} a6 {[%emt 0:05:53]}
8. Be2 {[%emt 0:04:58]} h6 {[%emt 0:00:41]} 9. O-O {[%emt 0:01:12]} Qd7 {
[%emt 0:01:04]} 10. Be3 {[%emt 0:05:56]} Nd4 {[%emt 0:12:37]} 11. Bxd4 {
[%emt 0:09:08]} exd4 {[%emt 0:00:28]} 12. Nd5 {[%emt 0:01:03]} c6 {[%emt 0:00:
00]} 13. Nf4 {[%emt 0:10:20]} g5 {[%emt 0:05:00]} 14. Nxe6 {[%emt 0:03:08]}
Qxe6 {[%emt 0:00:50]} 15. Nh2 {[%emt 0:05:19]} O-O-O {[%emt 0:11:12]} 16. b4 {
[%emt 0:03:54]} Bb6 {[%emt 0:00:18]} 17. Ng4 {[%emt 0:01:48]} Kb8 {[%emt 0:00:
00]} 18. Nxf6 {[%emt 0:06:44]} Qxf6 {[%emt 0:00:06]} 19. Bh5 {[%emt 0:14:52]}
Bc7 {[%emt 0:04:34]} 20. Qf3 {[%emt 0:02:33]} Qe5 {[%emt 0:02:28]} 21. Qf5 {
[%emt 0:00:53]} f6 {[%emt 0:02:33]} 22. Rab1 {[%emt 0:03:19]} d5 {[%emt 0:00:
00]} 23. Qxe5 {[%emt 0:00:09]} Bxe5 {[%emt 0:01:21]} 24. exd5 {[%emt 0:01:25]}
cxd5 {[%emt 0:00:04]} 25. c5 {[%emt 0:00:16]} Kc7 {[%emt 0:02:20]} 26. g3 {
[%emt 0:00:55]} Rhg8 {[%emt 0:05:42]} 27. Rfc1 {[%emt 0:02:33]} Kc6 {[%emt 0:
00:00]} 28. a4 {[%emt 0:00:19]} Kc7 {[%emt 0:03:28]} 29. Kf1 {[%emt 0:01:00]}
Rg7 {[%emt 0:01:59]} 30. b5 {[%emt 0:00:46]} a5 {[%emt 0:01:42]} 31. c6 {
[%emt 0:00:32]} b6 {[%emt 0:00:17]} 32. Re1 {[%emt 0:00:51]} 1/2-1/2

[Event "44th Chess Olympiad Women 2022"]
[Site "Chennai"]
[Date "2022.08.01"]
[Round "4.35"]
[White "Garcia, Angie"]
[Black "Kakulidis, Ellen"]
[Result "1-0"]
[WhiteElo "1894"]
[BlackElo "2057"]
[Annotator "NA RC"]
[PlyCount "57"]
[EventDate "2022.??.??"]
[TimeControl "60"]

1. e4 {[%emt 0:00:56]} c5 {[%emt 0:00:06]} 2. Nc3 {[%emt 0:00:30]} d6 {[%emt 0:
00:00]} 3. f4 {[%emt 0:00:14]} g6 {[%emt 0:00:15]} 4. Nf3 {[%emt 0:00:31]} Nc6
{[%emt 0:01:53]} 5. Bb5 {[%emt 0:00:41]} Bg7 {[%emt 0:07:57]} 6. Bxc6+ {
[%emt 0:01:21]} bxc6 {[%emt 0:00:09]} 7. O-O {[%emt 0:00:49]} e6 {[%emt 0:00:
00]} 8. d3 {[%emt 0:01:10]} Ne7 {[%emt 0:01:58]} 9. e5 {[%emt 0:06:53]} d5 {
[%emt 0:06:40]} 10. Na4 {[%emt 0:01:38]} Qa5 {[%emt 0:02:45]} 11. b3 {[%emt 0:
00:00]} d4 {[%emt 0:21:29]} 12. Ba3 {[%emt 0:01:51]} Nd5 {[%emt 0:00:45]} 13.
Qe1 {[%emt 0:03:11]} Qxe1 {[%emt 0:14:19]} 14. Rfxe1 {[%emt 0:00:13]} Nb4 {
[%emt 0:02:27]} 15. Nxd4 {[%emt 0:01:53]} Nxd3 {[%emt 0:05:11]} 16. cxd3 {
[%emt 0:00:18]} cxd4 {[%emt 0:00:26]} 17. Bc5 {[%emt 0:01:02]} Ba6 {[%emt 0:00:
00]} 18. Nb2 {[%emt 0:00:13]} Bf8 {[%emt 0:09:20]} 19. Bxd4 {[%emt 0:01:54]}
Bb4 {[%emt 0:04:11]} 20. Red1 {[%emt 0:00:34]} O-O {[%emt 0:01:30]} 21. Rac1 {
[%emt 0:03:52]} Rfd8 {[%emt 0:01:32]} 22. Bc5 {[%emt 0:01:34]} Bxc5+ {[%emt 0:
00:00]} 23. Rxc5 {[%emt 0:00:14]} Rac8 {[%emt 0:00:12]} 24. Ra5 {[%emt 0:00:55]
} Bb7 {[%emt 0:00:20]} 25. Rxa7 {[%emt 0:00:11]} Ba8 {[%emt 0:01:24]} 26. Nc4 {
[%emt 0:00:32]} Rf8 {[%emt 0:01:14]} 27. Rc1 {[%emt 0:02:06]} c5 {[%emt 0:00:
00]} 28. Nb6 {[%emt 0:00:30]} Rcd8 {[%emt 0:00:04]} 29. Nd7 {[%emt 0:00:26]}
1-0

[Event "44th Chess Olympiad Women 2022"]
[Site "Chennai"]
[Date "2022.08.01"]
[Round "4.35"]
[White "Nilssen, Ellen Fredericia"]
[Black "Ortez, Andrea"]
[Result "1-0"]
[WhiteElo "2142"]
[BlackElo "1908"]
[Annotator "NA RC"]
[PlyCount "83"]
[EventDate "2022.??.??"]
[TimeControl "60"]

1. d4 {[%emt 0:00:04]} d5 {[%emt 0:00:12]} 2. c4 {[%emt 0:00:21]} e6 {[%emt 0:
00:00]} 3. Nc3 {[%emt 0:00:10]} Nf6 {[%emt 0:00:18]} 4. cxd5 {[%emt 0:00:13]}
exd5 {[%emt 0:00:07]} 5. Bg5 {[%emt 0:00:12]} c6 {[%emt 0:00:40]} 6. e3 {
[%emt 0:00:11]} Be7 {[%emt 0:00:35]} 7. Bd3 {[%emt 0:00:11]} Nbd7 {[%emt 0:00:
00]} 8. h3 {[%emt 0:00:19]} Nf8 {[%emt 0:00:43]} 9. Nf3 {[%emt 0:02:07]} Ne6 {
[%emt 0:00:41]} 10. Bh4 {[%emt 0:00:17]} g6 {[%emt 0:01:12]} 11. O-O {[%emt 0:
00:00]} O-O {[%emt 0:01:23]} 12. Ne5 {[%emt 0:02:47]} Ng7 {[%emt 0:01:45]} 13.
g4 {[%emt 0:03:17]} Nd7 {[%emt 0:09:04]} 14. Bg3 {[%emt 0:02:56]} Nxe5 {
[%emt 0:02:40]} 15. Bxe5 {[%emt 0:02:35]} Bd6 {[%emt 0:03:27]} 16. Bxd6 {
[%emt 0:06:16]} Qxd6 {[%emt 0:00:04]} 17. f4 {[%emt 0:00:12]} f5 {[%emt 0:00:
00]} 18. g5 {[%emt 0:02:44]} Qe7 {[%emt 0:03:37]} 19. Qf3 {[%emt 0:00:52]} Ne8
{[%emt 0:00:55]} 20. Rf2 {[%emt 0:06:43]} Nd6 {[%emt 0:03:02]} 21. Rh2 {
[%emt 0:04:31]} Be6 {[%emt 0:06:18]} 22. h4 {[%emt 0:04:00]} Rae8 {[%emt 0:00:
00]} 23. Re1 {[%emt 0:06:49]} Kg7 {[%emt 0:07:41]} 24. Kf2 {[%emt 0:07:02]}
Ne4+ {[%emt 0:02:55]} 25. Bxe4 {[%emt 0:00:47]} dxe4 {[%emt 0:00:27]} 26. Qe2 {
[%emt 0:00:58]} Qb4 {[%emt 0:07:20]} 27. Qd2 {[%emt 0:02:33]} a5 {[%emt 0:00:
00]} 28. Kg3 {[%emt 0:03:22]} Rh8 {[%emt 0:03:40]} 29. a3 {[%emt 0:04:39]} Qb3
{[%emt 0:01:49]} 30. h5 {[%emt 0:02:26]} Bf7 {[%emt 0:09:12]} 31. h6+ {[%emt 0:
00:00]} Kf8 {[%emt 0:00:24]} 32. d5 {[%emt 0:00:17]} Qc4 {[%emt 0:01:12]} 33.
dxc6 {[%emt 0:00:53]} Qxc6 {[%emt 0:00:42]} 34. Qd4 {[%emt 0:00:43]} Rg8 {
[%emt 0:00:01]} 35. Rd2 {[%emt 0:00:40]} Bc4 {[%emt 0:04:09]} 36. Rc1 {[%emt 0:
00:00]} Qe6 {[%emt 0:01:54]} 37. Qc5+ {[%emt 0:00:44]} Re7 {[%emt 0:05:16]} 38.
Rd6 {[%emt 0:00:12]} b6 {[%emt 0:00:43]} 39. Qxb6 {[%emt 0:00:39]} Qc8 {
[%emt 0:02:27]} 40. Rd8+ {[%emt 0:00:07]} Qxd8 {[%emt 0:00:05]} 41. Qxd8+ {
[%emt 0:30:07]} Kf7 {[%emt 0:30:10]} 42. Qd4 {[%emt 0:00:18]} 1-0

[Event "44th Chess Olympiad Women 2022"]
[Site "Chennai"]
[Date "2022.08.01"]
[Round "4.35"]
[White "Palacios, Celina"]
[Black "Fredericia, Louise"]
[Result "0-1"]
[WhiteElo "1715"]
[BlackElo "1990"]
[Annotator "NA RC"]
[PlyCount "68"]
[EventDate "2022.??.??"]
[TimeControl "60"]

1. e4 {[%emt 0:00:44]} c6 {[%emt 0:02:09]} 2. d3 {[%emt 0:00:18]} d5 {[%emt 0:
00:00]} 3. Nd2 {[%emt 0:00:47]} e5 {[%emt 0:02:17]} 4. Ngf3 {[%emt 0:00:55]}
Nd7 {[%emt 0:04:27]} 5. g3 {[%emt 0:01:53]} Ngf6 {[%emt 0:00:55]} 6. Bg2 {
[%emt 0:00:38]} Bc5 {[%emt 0:01:13]} 7. O-O {[%emt 0:02:17]} O-O {[%emt 0:00:
00]} 8. c3 {[%emt 0:02:32]} Bb6 {[%emt 0:03:36]} 9. Qe2 {[%emt 0:04:35]} Re8 {
[%emt 0:01:45]} 10. h3 {[%emt 0:03:12]} Nc5 {[%emt 0:06:55]} 11. Rd1 {[%emt 0:
00:00]} Qc7 {[%emt 0:05:12]} 12. Nh4 {[%emt 0:06:15]} Be6 {[%emt 0:11:26]} 13.
Kh2 {[%emt 0:08:03]} Rad8 {[%emt 0:02:09]} 14. Rf1 {[%emt 0:13:53]} a5 {
[%emt 0:04:47]} 15. g4 {[%emt 0:09:43]} g6 {[%emt 0:04:37]} 16. Nb3 {[%emt 0:
00:00]} dxe4 {[%emt 0:04:23]} 17. dxe4 {[%emt 0:03:02]} Nd3 {[%emt 0:13:31]}
18. Bg5 {[%emt 0:02:37]} Nf4 {[%emt 0:00:30]} 19. Qc2 {[%emt 0:02:41]} Qe7 {
[%emt 0:00:39]} 20. Nf3 {[%emt 0:03:45]} Bc4 {[%emt 0:03:04]} 21. Bxf4 {
[%emt 0:03:29]} Bxf1 {[%emt 0:01:49]} 22. Bxe5 {[%emt 0:03:03]} Bd3 {[%emt 0:
00:00]} 23. Qc1 {[%emt 0:01:12]} Nd7 {[%emt 0:04:29]} 24. Bg3 {[%emt 0:01:42]}
Bxe4 {[%emt 0:00:29]} 25. Qf4 {[%emt 0:02:13]} Bxf3 {[%emt 0:04:03]} 26. Qxf3 {
[%emt 0:02:07]} Ne5 {[%emt 0:00:21]} 27. Qe4 {[%emt 0:00:52]} Qd7 {[%emt 0:00:
00]} 28. Bh4 {[%emt 0:01:14]} Nd3 {[%emt 0:01:41]} 29. Qf3 {[%emt 0:00:32]} Ne5
{[%emt 0:02:33]} 30. Qe4 {[%emt 0:00:32]} Nd3 {[%emt 0:01:47]} 31. Qf3 {
[%emt 0:00:08]} Qd6+ {[%emt 0:01:13]} 32. Bg3 {[%emt 0:00:40]} Qe7 {[%emt 0:00:
00]} 33. Rb1 {[%emt 0:01:00]} Qe2 {[%emt 0:02:28]} 34. Qf6 {[%emt 0:00:40]}
Bxf2 {[%emt 0:01:36]} 0-1

[Event "44th Chess Olympiad Women 2022"]
[Site "Chennai"]
[Date "2022.08.01"]
[Round "4.35"]
[White "Steffensen, Elena"]
[Black "Herrera, Marjorie"]
[Result "1-0"]
[WhiteElo "2044"]
[BlackElo "1760"]
[Annotator "NA RC"]
[PlyCount "81"]
[EventDate "2022.??.??"]
[TimeControl "60"]

1. e4 {[%emt 0:00:13]} c5 {[%emt 0:00:10]} 2. Nc3 {[%emt 0:00:00]} e6 {[%emt 0:
00:00]} 3. g3 {[%emt 0:00:00]} d5 {[%emt 0:00:10]} 4. d3 {[%emt 0:00:14]} Nc6 {
[%emt 0:01:41]} 5. Bg2 {[%emt 0:00:41]} Nf6 {[%emt 0:01:02]} 6. exd5 {[%emt 0:
00:00]} exd5 {[%emt 0:04:32]} 7. Nge2 {[%emt 0:00:16]} Be7 {[%emt 0:05:41]} 8.
O-O {[%emt 0:03:57]} h5 {[%emt 0:07:52]} 9. Bg5 {[%emt 0:06:07]} d4 {[%emt 0:
00:00]} 10. Bxf6 {[%emt 0:01:19]} Bxf6 {[%emt 0:00:26]} 11. Ne4 {[%emt 0:00:59]
} Be7 {[%emt 0:05:19]} 12. Nf4 {[%emt 0:02:48]} Bg4 {[%emt 0:03:33]} 13. Qe1 {
[%emt 0:06:08]} Kf8 {[%emt 0:22:24]} 14. h3 {[%emt 0:02:55]} Bf5 {[%emt 0:00:
00]} 15. Qe2 {[%emt 0:07:24]} Qd7 {[%emt 0:06:29]} 16. h4 {[%emt 0:08:50]} Bg4
{[%emt 0:05:35]} 17. f3 {[%emt 0:00:26]} Bf5 {[%emt 0:00:32]} 18. Rae1 {
[%emt 0:01:17]} Re8 {[%emt 0:03:35]} 19. Qf2 {[%emt 0:01:16]} Ne5 {[%emt 0:00:
00]} 20. Re2 {[%emt 0:02:25]} f6 {[%emt 0:06:12]} 21. Rfe1 {[%emt 0:02:52]} Ng6
{[%emt 0:06:02]} 22. Nxc5 {[%emt 0:01:00]} Bxc5 {[%emt 0:02:26]} 23. Rxe8+ {
[%emt 0:00:07]} Kf7 {[%emt 0:01:26]} 24. Rxh8 {[%emt 0:00:46]} Nxh8 {[%emt 0:
00:00]} 25. Qe2 {[%emt 0:01:25]} Bd6 {[%emt 0:00:55]} 26. Nxh5 {[%emt 0:02:43]}
g6 {[%emt 0:00:45]} 27. Nf4 {[%emt 0:00:23]} g5 {[%emt 0:00:12]} 28. hxg5 {
[%emt 0:02:09]} fxg5 {[%emt 0:00:02]} 29. Nh5 {[%emt 0:00:31]} Bc7 {[%emt 0:00:
00]} 30. f4 {[%emt 0:02:41]} Bg4 {[%emt 0:00:27]} 31. Bf3 {[%emt 0:01:29]} Bxf3
{[%emt 0:00:36]} 32. Qxf3 {[%emt 0:00:03]} g4 {[%emt 0:00:21]} 33. Qe4 {
[%emt 0:00:33]} Ng6 {[%emt 0:00:15]} 34. c4 {[%emt 0:01:56]} b6 {[%emt 0:00:30]
} 35. Kg2 {[%emt 0:02:06]} a5 {[%emt 0:00:51]} 36. f5 {[%emt 0:03:40]} Ne5 {
[%emt 0:00:23]} 37. f6 {[%emt 0:00:16]} Qc6 {[%emt 0:00:39]} 38. Qxc6 {[%emt 0:
00:00]} Nxc6 {[%emt 0:00:01]} 39. Re4 {[%emt 0:00:49]} Ne5 {[%emt 0:00:57]} 40.
Rxd4 {[%emt 0:00:27]} Kg6 {[%emt 0:00:12]} 41. Nf4+ {[%emt 0:30:29]} 1-0

[Event "44th Chess Olympiad Women 2022"]
[Site "Chennai"]
[Date "2022.08.01"]
[Round "4.36"]
[White "Ayzenberg, Alena"]
[Black "Roepke, Sofia"]
[Result "1/2-1/2"]
[WhiteElo "2023"]
[BlackElo "1869"]
[Annotator "NA RC"]
[PlyCount "84"]
[EventDate "2022.??.??"]
[TimeControl "60"]

1. d4 {[%emt 0:00:02]} d5 {[%emt 0:00:05]} 2. c4 {[%emt 0:00:19]} e6 {[%emt 0:
00:00]} 3. Nf3 {[%emt 0:00:08]} Nf6 {[%emt 0:00:07]} 4. g3 {[%emt 0:00:08]}
dxc4 {[%emt 0:00:23]} 5. Bg2 {[%emt 0:00:13]} a6 {[%emt 0:00:31]} 6. O-O {
[%emt 0:02:15]} Nc6 {[%emt 0:00:41]} 7. Ne5 {[%emt 0:04:03]} Nxe5 {[%emt 0:00:
00]} 8. dxe5 {[%emt 0:00:10]} Qxd1 {[%emt 0:00:06]} 9. Rxd1 {[%emt 0:00:05]}
Nd7 {[%emt 0:00:21]} 10. f4 {[%emt 0:03:46]} Bc5+ {[%emt 0:00:23]} 11. Kf1 {
[%emt 0:06:43]} Rb8 {[%emt 0:00:35]} 12. a4 {[%emt 0:03:10]} b5 {[%emt 0:13:03]
} 13. axb5 {[%emt 0:13:36]} axb5 {[%emt 0:00:53]} 14. Bc6 {[%emt 0:03:59]} Ke7
{[%emt 0:07:41]} 15. Nc3 {[%emt 0:04:28]} b4 {[%emt 0:03:41]} 16. Ne4 {[%emt 0:
00:00]} Bb6 {[%emt 0:05:33]} 17. Ra4 {[%emt 0:05:46]} Nc5 {[%emt 0:11:21]} 18.
Rxb4 {[%emt 0:03:27]} Nxe4 {[%emt 0:01:24]} 19. Bxe4 {[%emt 0:00:08]} Ba6 {
[%emt 0:00:33]} 20. Ra4 {[%emt 0:10:14]} Bb5 {[%emt 0:00:31]} 21. Ra1 {[%emt 0:
00:00]} Rhd8 {[%emt 0:15:37]} 22. Bd2 {[%emt 0:02:04]} Bc5 {[%emt 0:14:38]} 23.
Bc3 {[%emt 0:01:06]} Rxd1+ {[%emt 0:04:25]} 24. Rxd1 {[%emt 0:00:06]} Ba4 {
[%emt 0:01:12]} 25. Ra1 {[%emt 0:02:39]} Bb3 {[%emt 0:01:41]} 26. Ra8 {[%emt 0:
00:00]} Rxa8 {[%emt 0:01:33]} 27. Bxa8 {[%emt 0:00:05]} Kd7 {[%emt 0:01:41]}
28. Be4 {[%emt 0:00:35]} h6 {[%emt 0:01:29]} 29. Ke1 {[%emt 0:02:54]} Bg1 {
[%emt 0:00:42]} 30. h3 {[%emt 0:00:37]} Be3 {[%emt 0:00:43]} 31. h4 {[%emt 0:
00:00]} Ba4 {[%emt 0:02:41]} 32. h5 {[%emt 0:06:30]} Bb3 {[%emt 0:00:27]} 33.
Kf1 {[%emt 0:00:57]} Bd1 {[%emt 0:00:11]} 34. Ke1 {[%emt 0:01:17]} Bb3 {
[%emt 0:00:06]} 35. Bb4 {[%emt 0:02:20]} c5 {[%emt 0:03:59]} 36. Bc3 {[%emt 0:
00:00]} Ba4 {[%emt 0:01:25]} 37. Kf1 {[%emt 0:00:44]} Bd1 {[%emt 0:00:10]} 38.
Ke1 {[%emt 0:00:34]} Bb3 {[%emt 0:00:08]} 39. Kf1 {[%emt 0:01:04]} Bd1 {
[%emt 0:01:00]} 40. Ke1 {[%emt 0:00:36]} Bb3 {[%emt 0:00:21]} 41. Bd2 {[%emt 0:
00:00]} Bd4 {[%emt 0:30:44]} 42. Bc3 {[%emt 0:00:31]} Be3 {[%emt 0:00:10]}
1/2-1/2

[Event "44th Chess Olympiad Women 2022"]
[Site "Chennai"]
[Date "2022.08.01"]
[Round "4.36"]
[White "Machlik, Monika"]
[Black "Quevedo, Andreina"]
[Result "1-0"]
[WhiteElo "2111"]
[BlackElo "1841"]
[Annotator "NA RC"]
[PlyCount "77"]
[EventDate "2022.??.??"]
[TimeControl "60"]

1. d4 {[%emt 0:00:01]} Nf6 {[%emt 0:00:17]} 2. c4 {[%emt 0:00:05]} e6 {[%emt 0:
00:00]} 3. Nc3 {[%emt 0:00:24]} Bb4 {[%emt 0:00:13]} 4. Qc2 {[%emt 0:00:24]}
Nc6 {[%emt 0:00:33]} 5. Nf3 {[%emt 0:01:20]} d6 {[%emt 0:01:35]} 6. Bd2 {
[%emt 0:02:04]} O-O {[%emt 0:00:38]} 7. a3 {[%emt 0:01:34]} Bxc3 {[%emt 0:00:
00]} 8. Bxc3 {[%emt 0:00:05]} Re8 {[%emt 0:09:16]} 9. e3 {[%emt 0:07:18]} a5 {
[%emt 0:03:19]} 10. b3 {[%emt 0:05:50]} Qe7 {[%emt 0:03:25]} 11. Be2 {[%emt 0:
00:00]} e5 {[%emt 0:02:53]} 12. dxe5 {[%emt 0:01:41]} dxe5 {[%emt 0:01:03]} 13.
O-O {[%emt 0:01:02]} Bg4 {[%emt 0:03:47]} 14. Rfd1 {[%emt 0:06:20]} Red8 {
[%emt 0:26:34]} 15. Qb2 {[%emt 0:15:10]} e4 {[%emt 0:18:33]} 16. Nd4 {[%emt 0:
00:00]} Nxd4 {[%emt 0:03:11]} 17. Bxd4 {[%emt 0:08:26]} Bxe2 {[%emt 0:00:14]}
18. Qxe2 {[%emt 0:00:20]} b6 {[%emt 0:01:19]} 19. Bb2 {[%emt 0:05:04]} Rxd1+ {
[%emt 0:02:45]} 20. Rxd1 {[%emt 0:00:16]} Rd8 {[%emt 0:00:13]} 21. h3 {[%emt 0:
00:00]} Rd6 {[%emt 0:10:23]} 22. Rxd6 {[%emt 0:07:03]} Qxd6 {[%emt 0:00:12]}
23. Bxf6 {[%emt 0:00:53]} Qxf6 {[%emt 0:02:19]} 24. Qg4 {[%emt 0:01:24]} Qa1+ {
[%emt 0:01:01]} 25. Kh2 {[%emt 0:00:01]} Qe5+ {[%emt 0:00:06]} 26. Qg3 {
[%emt 0:01:15]} Qe7 {[%emt 0:02:52]} 27. a4 {[%emt 0:01:18]} f5 {[%emt 0:03:06]
} 28. Qf4 {[%emt 0:01:51]} Qd7 {[%emt 0:01:44]} 29. Qe5 {[%emt 0:02:10]} Kf7 {
[%emt 0:00:41]} 30. Kg3 {[%emt 0:00:49]} g5 {[%emt 0:01:45]} 31. h4 {[%emt 0:
00:00]} Kg6 {[%emt 0:01:01]} 32. hxg5 {[%emt 0:01:01]} Kxg5 {[%emt 0:00:10]}
33. f3 {[%emt 0:01:30]} exf3 {[%emt 0:00:27]} 34. gxf3 {[%emt 0:00:16]} h6 {
[%emt 0:01:05]} 35. e4 {[%emt 0:01:03]} Qd6 {[%emt 0:00:30]} 36. f4+ {[%emt 0:
00:00]} Kg6 {[%emt 0:00:11]} 37. Qxf5+ {[%emt 0:00:24]} Kg7 {[%emt 0:00:10]}
38. e5 {[%emt 0:01:37]} Qd1 {[%emt 0:00:31]} 39. Qg4+ {[%emt 0:00:30]} 1-0